Workbook

Sheet INGRESO DE DATOS
A8: COTIZACION DE SEGURO MEDICO INTERNACIONAL
A10: INGRESE LOS DATOS DEL PROPUESTO ASEGURADO:
B12: Nombre del Asegurado principal: | D12: NOMBRE COMPLETO
F14: Número de adultos en la póliza: | G14: 1 | I14: Número de hijos en la póliza: | J14: 2
F16: Edad del titular: | G16: 18 | I16: Edad de cónyuge: | J16: 18
A19: INGRESE EL NOMBRE DE LA AGENCIA ASESORA:
C21: Nombre de la Agencia: | D21: AGENCIA
A24: ESCOJA EL PRODUCTO PARA VISUALIZAR LA COTIZACION RESPECTIVA:

Sheet Exclusive
C10: Cotización de Seguro Médico Internacional - Bupa EXCLUSIVE Care
H12: =+'INGRESO DE DATOS'!$D$12 -> NOMBRE COMPLETO
H14: =+'INGRESO DE DATOS'!$D$21 -> AGENCIA
J16: =+'INGRESO DE DATOS'!$G$14 -> 1 | M16: =+'INGRESO DE DATOS'!$G$16 -> 18
F17: FECHA DE COTIZACION :
F18: =NOW() -> 2023-08-16T10:35:39.970 | J18: =+'INGRESO DE DATOS'!$J$14 -> 2 | M18: =+'INGRESO DE DATOS'!$J$16 -> 18
I20: TRUE | K20: COMPLICACIONES DE MATERNIDAD
J22: FALSE
F25: Deducibles | H25: PLAN 1 | I25: PLAN 2 | J25: PLAN 3 | K25: PLAN 4 | L25: PLAN 5 | M25: PLAN 6
F26: Dentro del pais de residencia | H26: n/a | I26: 1000 | J26: 2000 | K26: 5000 | L26: 10000 | M26: 20000
F27: Fuera del pais de residencia | H27: n/a | I27: 2000 | J27: 3000 | K27: 5000 | L27: 10000 | M27: 20000
F30: Tarifas Anuales
F31: Prima de Titular : | H31: n/a | I31: =VLOOKUP($M$16,Tablas!$A$6:$H$29,4,TRUE) -> 18751 | J31: =VLOOKUP($M$16,Tablas!$A$6:$H$29,5,TRUE) -> 12385 | K31: =VLOOKUP($M$16,Tablas!$A$6:$H$29,6,TRUE) -> 8260 | L31: =VLOOKUP($M$16,Tablas!$A$6:$H$29,7,TRUE) -> 5853 | M31: =VLOOKUP($M$16,Tablas!$A$6:$H$29,8,TRUE) -> 4609
F32: Prima de Cónyuge | H32: n/a | I32: =IF($J$16=1,0,(VLOOKUP($M$18,Tablas!$A$6:$H$29,4,TRUE))) -> 0 | J32: =IF($J$16=1,0,(VLOOKUP($M$18,Tablas!$A$6:$H$29,5,TRUE))) -> 0 | K32: =IF($J$16=1,0,(VLOOKUP($M$18,Tablas!$A$6:$H$29,6,TRUE))) -> 0 | L32: =IF($J$16=1,0,(VLOOKUP($M$18,Tablas!$A$6:$H$29,7,TRUE))) -> 0 | M32: =IF($J$16=1,0,(VLOOKUP($M$18,Tablas!$A$6:$H$29,8,TRUE))) -> 0
F33: Primas Hijos : | H33: n/a | I33: =IF($J$18=0,0,(VLOOKUP($J$18,Tablas!$A$30:$H$32,4,TRUE))) -> 10368 | J33: =IF($J$18=0,0,(VLOOKUP($J$18,Tablas!$A$30:$H$32,5,TRUE))) -> 7652 | K33: =IF($J$18=0,0,(VLOOKUP($J$18,Tablas!$A$30:$H$32,6,TRUE))) -> 5886 | L33: =IF($J$18=0,0,(VLOOKUP($J$18,Tablas!$A$30:$H$32,7,TRUE))) -> 4948 | M33: =IF($J$18=0,0,(VLOOKUP($J$18,Tablas!$A$30:$H$32,8,TRUE))) -> 3853
F34: Prima Rider Complic. Maternidad | H34: n/a | I34: =+IF($I$20=FALSE,0,Tablas!D$33) -> 0 | J34: =+IF($I$20=FALSE,0,Tablas!E$33) -> 0 | K34: =+IF($I$20=FALSE,0,Tablas!F$33) -> 225 | L34: =+IF($I$20=FALSE,0,Tablas!G$33) -> 225 | M34: =+IF($I$20=FALSE,0,Tablas!H$33) -> 225
F35: TOTAL PRIMA NETA : | H35: n/a | I35: =SUM(I31:I34) -> 29119 | J35: =SUM(J31:J34) -> 20037 | K35: =SUM(K31:K34) -> 14371 | L35: =SUM(L31:L34) -> 11026 | M35: =SUM(M31:M34) -> 8687
F36: Costo Administrativo Anual : | H36: n/a | I36: 75 | J36: 75 | K36: 75 | L36: 75 | M36: 75
F37: GRAN TOTAL : | H37: n/a | I37: =SUM(I35:I36) -> 29194 | J37: =SUM(J35:J36) -> 20112 | K37: =SUM(K35:K36) -> 14446 | L37: =SUM(L35:L36) -> 11101 | M37: =SUM(M35:M36) -> 8762
F39: Tarifas Semestrales
F40: Prima de Titular : | H40: n/a | I40: =VLOOKUP($M$16,Tablas!$A$39:$H$62,4,TRUE) -> 9938.03 | J40: =VLOOKUP($M$16,Tablas!$A$39:$H$62,5,TRUE) -> 6564.05 | K40: =VLOOKUP($M$16,Tablas!$A$39:$H$62,6,TRUE) -> 4377.8 | L40: =VLOOKUP($M$16,Tablas!$A$39:$H$62,7,TRUE) -> 3102.09 | M40: =VLOOKUP($M$16,Tablas!$A$39:$H$62,8,TRUE) -> 2442.77
F41: Prima de Cónyuge | H41: n/a | I41: =IF($J$16=1,0,(VLOOKUP($M$18,Tablas!$A$39:$H$62,4,TRUE))) -> 0 | J41: =IF($J$16=1,0,(VLOOKUP($M$18,Tablas!$A$39:$H$62,5,TRUE))) -> 0 | K41: =IF($J$16=1,0,(VLOOKUP($M$18,Tablas!$A$39:$H$62,6,TRUE))) -> 0 | L41: =IF($J$16=1,0,(VLOOKUP($M$18,Tablas!$A$39:$H$62,7,TRUE))) -> 0 | M41: =IF($J$16=1,0,(VLOOKUP($M$18,Tablas!$A$39:$H$62,8,TRUE))) -> 0
F42: Primas Hijos : | H42: n/a | I42: =IF($J$18=0,0,(VLOOKUP($J$18,Tablas!$A$63:$H$65,4,TRUE))) -> 5495.04 | J42: =IF($J$18=0,0,(VLOOKUP($J$18,Tablas!$A$63:$H$65,5,TRUE))) -> 4055.56 | K42: =IF($J$18=0,0,(VLOOKUP($J$18,Tablas!$A$63:$H$65,6,TRUE))) -> 3119.58 | L42: =IF($J$18=0,0,(VLOOKUP($J$18,Tablas!$A$63:$H$65,7,TRUE))) -> 2622.44 | M42: =IF($J$18=0,0,(VLOOKUP($J$18,Tablas!$A$63:$H$65,8,TRUE))) -> 2042.09
F43: Prima Rider Complic. Maternidad | H43: n/a | I43: =+IF($I$20=FALSE,0,Tablas!D$66) -> 0 | J43: =+IF($I$20=FALSE,0,Tablas!E$66) -> 0 | K43: =+IF($I$20=FALSE,0,Tablas!F$66) -> 119.25 | L43: =+IF($I$20=FALSE,0,Tablas!G$66) -> 119.25 | M43: =+IF($I$20=FALSE,0,Tablas!H$66) -> 119.25
F44: TOTAL PRIMA NETA : | H44: n/a | I44: =SUM(I40:I43) -> 15433.07 | J44: =SUM(J40:J43) -> 10619.61 | K44: =SUM(K40:K43) -> 7616.63 | L44: =SUM(L40:L43) -> 5843.78 | M44: =SUM(M40:M43) -> 4604.11
F45: Costo Administrativo Anual : | H45: n/a | I45: 75 | J45: 75 | K45: 75 | L45: 75 | M45: 75
F46: GRAN TOTAL (1ra Cuota) : | H46: n/a | I46: =SUM(I44:I45) -> 15508.07 | J46: =SUM(J44:J45) -> 10694.61 | K46: =SUM(K44:K45) -> 7691.63 | L46: =SUM(L44:L45) -> 5918.78 | M46: =SUM(M44:M45) -> 4679.11
F47: GRAN TOTAL (2da Cuota) : | H47: n/a | I47: =I44 -> 15433.07 | J47: =J44 -> 10619.61 | K47: 7616.63 | L47: 5843.78 | M47: 4604.11
F48: Tarifas en US $ - Válidas desde 01 enero 2023
F50: Este presupuesto solamente tiene carácter informativo y en ningún momento expresa compromiso legal para suministrarle cobertura de seguro. La emisión de una póliza de seguro Bupa está sujeta a todas las evaluaciones de riesgo por parte de Bupa y a la recepción de todos los pagos de prima requeridos.

Sheet Privilege
C10: Cotización de Seguro Médico Internacional - Bupa PRIVILEGE Care
H12: =+'INGRESO DE DATOS'!$D$12 -> NOMBRE COMPLETO
H14: =+'INGRESO DE DATOS'!$D$21 -> AGENCIA
J16: =+'INGRESO DE DATOS'!$G$14 -> 1 | M16: =+'INGRESO DE DATOS'!$G$16 -> 18
F17: FECHA DE COTIZACION :
F18: =NOW() -> 2023-08-16T10:35:39.970 | J18: =+'INGRESO DE DATOS'!$J$14 -> 2 | M18: =+'INGRESO DE DATOS'!$J$16 -> 18
I20: FALSE | K20: COMPLICACIONES DE MATERNIDAD
J22: FALSE
F25: Deducibles | H25: PLAN 1 | I25: PLAN 2 | J25: PLAN 3 | K25: PLAN 4 | L25: PLAN 5 | M25: PLAN 6
F26: Dentro del pais de residencia | H26: n/a | I26: 1000 | J26: 2000 | K26: 5000 | L26: 10000 | M26: 20000
F27: Fuera del pais de residencia | H27: n/a | I27: 2000 | J27: 3000 | K27: 5000 | L27: 10000 | M27: 20000
F30: Tarifas Anuales
F31: Prima de Titular : | H31: n/a | I31: =VLOOKUP($M$16,Tablas!$A$140:$H$163,4,TRUE) -> 15762 | J31: =VLOOKUP($M$16,Tablas!$A$140:$H$163,5,TRUE) -> 10834 | K31: =VLOOKUP($M$16,Tablas!$A$140:$H$163,6,TRUE) -> 7180 | L31: =VLOOKUP($M$16,Tablas!$A$140:$H$163,7,TRUE) -> 5088 | M31: =VLOOKUP($M$16,Tablas!$A$140:$H$163,8,TRUE) -> 3883
F32: Prima de Cónyuge | H32: n/a | I32: =IF($J$16=1,0,(VLOOKUP($M$18,Tablas!$A$140:$H$163,4,TRUE))) -> 0 | J32: =IF($J$16=1,0,(VLOOKUP($M$18,Tablas!$A$140:$H$163,5,TRUE))) -> 0 | K32: =IF($J$16=1,0,(VLOOKUP($M$18,Tablas!$A$140:$H$163,6,TRUE))) -> 0 | L32: =IF($J$16=1,0,(VLOOKUP($M$18,Tablas!$A$140:$H$163,7,TRUE))) -> 0 | M32: =IF($J$16=1,0,(VLOOKUP($M$18,Tablas!$A$140:$H$163,8,TRUE))) -> 0
F33: Primas Hijos : | H33: n/a | I33: =IF($J$18=0,0,(VLOOKUP($J$18,Tablas!$A$164:$H$166,4,TRUE))) -> 8698 | J33: =IF($J$18=0,0,(VLOOKUP($J$18,Tablas!$A$164:$H$166,5,TRUE))) -> 6360 | K33: =IF($J$18=0,0,(VLOOKUP($J$18,Tablas!$A$164:$H$166,6,TRUE))) -> 4643 | L33: =IF($J$18=0,0,(VLOOKUP($J$18,Tablas!$A$164:$H$166,7,TRUE))) -> 3922 | M33: =IF($J$18=0,0,(VLOOKUP($J$18,Tablas!$A$164:$H$166,8,TRUE))) -> 2898
F34: Prima Rider Complic. Maternidad | H34: n/a | I34: =+IF($I$20=FALSE,0,Tablas!D$167) -> 0 | J34: =+IF($I$20=FALSE,0,Tablas!E$167) -> 0 | K34: =+IF($I$20=FALSE,0,Tablas!F$167) -> 0 | L34: =+IF($I$20=FALSE,0,Tablas!G$167) -> 0 | M34: =+IF($I$20=FALSE,0,Tablas!H$167) -> 0
F35: TOTAL PRIMA NETA : | H35: n/a | I35: =SUM(I31:I34) -> 24460 | J35: =SUM(J31:J34) -> 17194 | K35: =SUM(K31:K34) -> 11823 | L35: =SUM(L31:L34) -> 9010 | M35: =SUM(M31:M34) -> 6781
F36: Costo Administrativo Anual : | H36: n/a | I36: 75 | J36: 75 | K36: 75 | L36: 75 | M36: 75
F37: GRAN TOTAL : | H37: n/a | I37: =SUM(I35:I36) -> 24535 | J37: =SUM(J35:J36) -> 17269 | K37: =SUM(K35:K36) -> 11898 | L37: =SUM(L35:L36) -> 9085 | M37: =SUM(M35:M36) -> 6856
F39: Tarifas Semestrales
F40: Prima de Titular : | H40: n/a | I40: =VLOOKUP($M$16,Tablas!$A$173:$H$196,4,TRUE) -> 8353.86 | J40: =VLOOKUP($M$16,Tablas!$A$173:$H$196,5,TRUE) -> 5742.02 | K40: =VLOOKUP($M$16,Tablas!$A$173:$H$196,6,TRUE) -> 3805.4 | L40: =VLOOKUP($M$16,Tablas!$A$173:$H$196,7,TRUE) -> 2696.64 | M40: =VLOOKUP($M$16,Tablas!$A$173:$H$196,8,TRUE) -> 2057.99
F41: Prima de Cónyuge | H41: n/a | I41: =IF($J$16=1,0,(VLOOKUP($M$18,Tablas!$A$173:$H$196,4,TRUE))) -> 0 | J41: =IF($J$16=1,0,(VLOOKUP($M$18,Tablas!$A$173:$H$196,5,TRUE))) -> 0 | K41: =IF($J$16=1,0,(VLOOKUP($M$18,Tablas!$A$173:$H$196,6,TRUE))) -> 0 | L41: =IF($J$16=1,0,(VLOOKUP($M$18,Tablas!$A$173:$H$196,7,TRUE))) -> 0 | M41: =IF($J$16=1,0,(VLOOKUP($M$18,Tablas!$A$173:$H$196,8,TRUE))) -> 0
F42: Primas Hijos : | H42: n/a | I42: =IF($J$18=0,0,(VLOOKUP($J$18,Tablas!$A$197:$H$199,4,TRUE))) -> 4609.94 | J42: =IF($J$18=0,0,(VLOOKUP($J$18,Tablas!$A$197:$H$199,5,TRUE))) -> 3370.8 | K42: =IF($J$18=0,0,(VLOOKUP($J$18,Tablas!$A$197:$H$199,6,TRUE))) -> 2460.79 | L42: =IF($J$18=0,0,(VLOOKUP($J$18,Tablas!$A$197:$H$199,7,TRUE))) -> 2078.66 | M42: =IF($J$18=0,0,(VLOOKUP($J$18,Tablas!$A$197:$H$199,8,TRUE))) -> 1535.94
F43: Prima Rider Complic. Maternidad | H43: n/a | I43: =+IF($I$20=FALSE,0,Tablas!D$200) -> 0 | J43: =+IF($I$20=FALSE,0,Tablas!E$200) -> 0 | K43: =+IF($I$20=FALSE,0,Tablas!F$200) -> 0 | L43: =+IF($I$20=FALSE,0,Tablas!G$200) -> 0 | M43: =+IF($I$20=FALSE,0,Tablas!H$200) -> 0
F44: TOTAL PRIMA NETA : | H44: n/a | I44: =SUM(I40:I43) -> 12963.8 | J44: =SUM(J40:J43) -> 9112.82 | K44: =SUM(K40:K43) -> 6266.19 | L44: =SUM(L40:L43) -> 4775.3 | M44: =SUM(M40:M43) -> 3593.93
F45: Costo Administrativo Anual : | H45: n/a | I45: 75 | J45: 75 | K45: 75 | L45: 75 | M45: 75
F46: GRAN TOTAL (1ra Cuota) : | H46: n/a | I46: =SUM(I44:I45) -> 13038.8 | J46: =SUM(J44:J45) -> 9187.82 | K46: =SUM(K44:K45) -> 6341.19 | L46: =SUM(L44:L45) -> 4850.3 | M46: =SUM(M44:M45) -> 3668.93
F47: GRAN TOTAL (2da Cuota) : | H47: n/a | I47: =I44 -> 12963.8 | J47: =J44 -> 9112.82 | K47: 6266.19 | L47: 4775.3 | M47: 3593.93
F48: Tarifas en US $ - Válidas desde 01 enero 2023
F50: Este presupuesto solamente tiene carácter informativo y en ningún momento expresa compromiso legal para suministrarle cobertura de seguro. La emisión de una póliza de seguro Bupa está sujeta a todas las evaluaciones de riesgo por parte de Bupa y a la recepción de todos los pagos de prima requeridos.

Sheet Advantage (Mundial)
C10: Cotización de Seguro Médico Internacional - Bupa ADVANTAGE Care
H12: =+'INGRESO DE DATOS'!$D$12 -> NOMBRE COMPLETO
H14: =+'INGRESO DE DATOS'!$D$21 -> AGENCIA
J16: =+'INGRESO DE DATOS'!$G$14 -> 1 | M16: =+'INGRESO DE DATOS'!$G$16 -> 18
F17: FECHA DE COTIZACION :
F18: =NOW() -> 2023-08-16T10:35:39.970 | J18: =+'INGRESO DE DATOS'!$J$14 -> 2 | M18: =+'INGRESO DE DATOS'!$J$16 -> 18
I20: TRUE | K20: COMPLICACIONES DE MATERNIDAD
I22: TRUE | K22: TRASPLANTE DE ORGANOS
F25: Deducibles | H25: PLAN 1 | I25: PLAN 2 | J25: PLAN 3 | K25: PLAN 4 | L25: PLAN 5 | M25: PLAN 6
F26: Dentro del pais de residencia | H26: n/a | I26: 1000 | J26: 2000 | K26: 5000 | L26: 10000 | M26: 20000
F27: Fuera del pais de residencia | H27: n/a | I27: 2000 | J27: 3000 | K27: 5000 | L27: 10000 | M27: 20000
F30: Tarifas Anuales
F31: Prima de Titular : | H31: n/a | I31: =VLOOKUP($M$16,Tablas!$A$274:$H$297,4,TRUE) -> 10587 | J31: =VLOOKUP($M$16,Tablas!$A$274:$H$297,5,TRUE) -> 7958 | K31: =VLOOKUP($M$16,Tablas!$A$274:$H$297,6,TRUE) -> 5662 | L31: =VLOOKUP($M$16,Tablas!$A$274:$H$297,7,TRUE) -> 4335 | M31: =VLOOKUP($M$16,Tablas!$A$274:$H$297,8,TRUE) -> 3434
F32: Prima de Cónyuge | H32: n/a | I32: =IF($J$16=1,0,(VLOOKUP($M$18,Tablas!$A$274:$H$297,4,TRUE))) -> 0 | J32: =IF($J$16=1,0,(VLOOKUP($M$18,Tablas!$A$274:$H$297,5,TRUE))) -> 0 | K32: =IF($J$16=1,0,(VLOOKUP($M$18,Tablas!$A$274:$H$297,6,TRUE))) -> 0 | L32: =IF($J$16=1,0,(VLOOKUP($M$18,Tablas!$A$274:$H$297,7,TRUE))) -> 0 | M32: =IF($J$16=1,0,(VLOOKUP($M$18,Tablas!$A$274:$H$297,8,TRUE))) -> 0
F33: Primas Hijos : | H33: n/a | I33: =IF($J$18=0,0,(VLOOKUP($J$18,Tablas!$A$298:$H$300,4,TRUE))) -> 7680 | J33: =IF($J$18=0,0,(VLOOKUP($J$18,Tablas!$A$298:$H$300,5,TRUE))) -> 5300 | K33: =IF($J$18=0,0,(VLOOKUP($J$18,Tablas!$A$298:$H$300,6,TRUE))) -> 3889 | L33: =IF($J$18=0,0,(VLOOKUP($J$18,Tablas!$A$298:$H$300,7,TRUE))) -> 3449 | M33: =IF($J$18=0,0,(VLOOKUP($J$18,Tablas!$A$298:$H$300,8,TRUE))) -> 2319
F34: Prima Rider Complic. Maternidad | H34: n/a | I34: =+IF($I$20=FALSE,0,Tablas!D$301) -> 225 | J34: =+IF($I$20=FALSE,0,Tablas!E$301) -> 225 | K34: =+IF($I$20=FALSE,0,Tablas!F$301) -> 225 | L34: =+IF($I$20=FALSE,0,Tablas!G$301) -> 225 | M34: =+IF($I$20=FALSE,0,Tablas!H$301) -> 225
F35: Prima Rider Trasplante Organos | H35: n/a | I35: =IF($I$22=FALSE,0,Tablas!D$302) -> 300 | J35: =IF($I$22=FALSE,0,Tablas!E$302) -> 300 | K35: =IF($I$22=FALSE,0,Tablas!F$302) -> 300 | L35: =IF($I$22=FALSE,0,Tablas!G$302) -> 300 | M35: =IF($I$22=FALSE,0,Tablas!H$302) -> 300
F36: TOTAL PRIMA NETA : | H36: n/a | I36: =SUM(I31:I35) -> 18792 | J36: 13783 | K36: 10076 | L36: 8309 | M36: 6278
F37: Costo Administrativo Anual : | H37: n/a | I37: 75 | J37: 75 | K37: 75 | L37: 75 | M37: 75
F38: GRAN TOTAL : | H38: n/a | I38: =SUM(I36:I37) -> 18867 | J38: =SUM(J36:J37) -> 13858 | K38: =SUM(K36:K37) -> 10151 | L38: =SUM(L36:L37) -> 8384 | M38: =SUM(M36:M37) -> 6353
F40: Tarifas Semestrales
F41: Prima de Titular : | H41: n/a | I41: =VLOOKUP($M$16,Tablas!$A$307:$H$330,4,TRUE) -> 5611.11 | J41: =VLOOKUP($M$16,Tablas!$A$307:$H$330,5,TRUE) -> 4217.74 | K41: =VLOOKUP($M$16,Tablas!$A$307:$H$330,6,TRUE) -> 3000.86 | L41: =VLOOKUP($M$16,Tablas!$A$307:$H$330,7,TRUE) -> 2297.55 | M41: =VLOOKUP($M$16,Tablas!$A$307:$H$330,8,TRUE) -> 1820.02
F42: Prima de Cónyuge | H42: n/a | I42: =IF($J$16=1,0,(VLOOKUP($M$18,Tablas!$A$307:$H$330,4,TRUE))) -> 0 | J42: =IF($J$16=1,0,(VLOOKUP($M$18,Tablas!$A$307:$H$330,5,TRUE))) -> 0 | K42: =IF($J$16=1,0,(VLOOKUP($M$18,Tablas!$A$307:$H$330,6,TRUE))) -> 0 | L42: =IF($J$16=1,0,(VLOOKUP($M$18,Tablas!$A$307:$H$330,7,TRUE))) -> 0 | M42: =IF($J$16=1,0,(VLOOKUP($M$18,Tablas!$A$307:$H$330,8,TRUE))) -> 0
F43: Primas Hijos : | H43: n/a | I43: =IF($J$18=0,0,(VLOOKUP($J$18,Tablas!$A$331:$H$333,4,TRUE))) -> 4070.4 | J43: =IF($J$18=0,0,(VLOOKUP($J$18,Tablas!$A$331:$H$333,5,TRUE))) -> 2809 | K43: =IF($J$18=0,0,(VLOOKUP($J$18,Tablas!$A$331:$H$333,6,TRUE))) -> 2061.17 | L43: =IF($J$18=0,0,(VLOOKUP($J$18,Tablas!$A$331:$H$333,7,TRUE))) -> 1827.97 | M43: =IF($J$18=0,0,(VLOOKUP($J$18,Tablas!$A$331:$H$333,8,TRUE))) -> 1229.07
F44: Prima Rider Complic. Maternidad | H44: n/a | I44: =+IF($I$20=FALSE,0,Tablas!D$334) -> 119.25 | J44: =+IF($I$20=FALSE,0,Tablas!E$334) -> 119.25 | K44: =+IF($I$20=FALSE,0,Tablas!F$334) -> 119.25 | L44: =+IF($I$20=FALSE,0,Tablas!G$334) -> 119.25 | M44: =+IF($I$20=FALSE,0,Tablas!H$334) -> 119.25
F45: Prima Rider Trasplante Organos | H45: n/a | I45: =IF($I$22=FALSE,0,Tablas!D$335) -> 159 | J45: =IF($I$22=FALSE,0,Tablas!E$335) -> 159 | K45: =IF($I$22=FALSE,0,Tablas!F$335) -> 159 | L45: =IF($I$22=FALSE,0,Tablas!G$335) -> 159 | M45: =IF($I$22=FALSE,0,Tablas!H$335) -> 159
F46: TOTAL PRIMA NETA : | H46: n/a | I46: =SUM(I41:I45) -> 9959.76 | J46: 7304.99 | K46: 5340.28 | L46: 4403.77 | M46: 3327.34
F47: Costo Administrativo Anual : | H47: n/a | I47: 75 | J47: 75 | K47: 75 | L47: 75 | M47: 75
F48: GRAN TOTAL (1ra Cuota) : | H48: n/a | I48: =SUM(I46:I47) -> 10034.76 | J48: =SUM(J46:J47) -> 7379.99 | K48: =SUM(K46:K47) -> 5415.28 | L48: =SUM(L46:L47) -> 4478.77 | M48: =SUM(M46:M47) -> 3402.34
F49: GRAN TOTAL (2da Cuota) : | H49: n/a | I49: =I46 -> 9959.76 | J49: =J46 -> 7304.99 | K49: 5340.28 | L49: 4403.77 | M49: 3327.34
F50: Tarifas en US $ - Válidas desde 01 enero 2023
F52: Este presupuesto solamente tiene carácter informativo y en ningún momento expresa compromiso legal para suministrarle cobertura de seguro. La emisión de una póliza de seguro Bupa está sujeta a todas las evaluaciones de riesgo por parte de Bupa y a la recepción de todos los pagos de prima requeridos.

Sheet Advantage (LA)
A10: Cotización de Seguro Médico Internacional - Bupa ADVANTAGE Care (cobertura solo Latinoamérica)
H12: =+'INGRESO DE DATOS'!$D$12 -> NOMBRE COMPLETO
H14: =+'INGRESO DE DATOS'!$D$21 -> AGENCIA
J16: =+'INGRESO DE DATOS'!$G$14 -> 1 | M16: =+'INGRESO DE DATOS'!$G$16 -> 18
F17: FECHA DE COTIZACION :
F18: =NOW() -> 2023-08-16T10:35:39.970 | J18: =+'INGRESO DE DATOS'!$J$14 -> 2 | M18: =+'INGRESO DE DATOS'!$J$16 -> 18
I20: TRUE | K20: COMPLICACIONES DE MATERNIDAD
I22: TRUE | K22: TRASPLANTE DE ORGANOS
F25: Deducibles | H25: PLAN 1 | I25: PLAN 2 | J25: PLAN 3 | K25: PLAN 4 | L25: PLAN 5 | M25: PLAN 6
F26: Dentro del pais de residencia | H26: n/a | I26: 1000 | J26: 2000 | K26: 5000 | L26: 10000 | M26: 20000
F27: Fuera del pais de residencia | H27: n/a | I27: 2000 | J27: 3000 | K27: 5000 | L27: 10000 | M27: 20000
F30: Tarifas Anuales
F31: Prima de Titular : | H31: n/a | I31: =VLOOKUP($M$16,Tablas!$A$341:$H$364,4,TRUE) -> 8195 | J31: =VLOOKUP($M$16,Tablas!$A$341:$H$364,5,TRUE) -> 6147 | K31: =VLOOKUP($M$16,Tablas!$A$341:$H$364,6,TRUE) -> 4356 | L31: =VLOOKUP($M$16,Tablas!$A$341:$H$364,7,TRUE) -> 3337 | M31: =VLOOKUP($M$16,Tablas!$A$341:$H$364,8,TRUE) -> 2635
F32: Prima de Cónyuge | H32: n/a | I32: =IF($J$16=1,0,(VLOOKUP($M$18,Tablas!$A$341:$H$364,4,TRUE))) -> 0 | J32: =IF($J$16=1,0,(VLOOKUP($M$18,Tablas!$A$341:$H$364,5,TRUE))) -> 0 | K32: =IF($J$16=1,0,(VLOOKUP($M$18,Tablas!$A$341:$H$364,6,TRUE))) -> 0 | L32: =IF($J$16=1,0,(VLOOKUP($M$18,Tablas!$A$341:$H$364,7,TRUE))) -> 0 | M32: =IF($J$16=1,0,(VLOOKUP($M$18,Tablas!$A$341:$H$364,8,TRUE))) -> 0
F33: Primas Hijos : | H33: n/a | I33: =IF($J$18=0,0,(VLOOKUP($J$18,Tablas!$A$365:$H$367,4,TRUE))) -> 5967 | J33: =IF($J$18=0,0,(VLOOKUP($J$18,Tablas!$A$365:$H$367,5,TRUE))) -> 4131 | K33: =IF($J$18=0,0,(VLOOKUP($J$18,Tablas!$A$365:$H$367,6,TRUE))) -> 3034 | L33: =IF($J$18=0,0,(VLOOKUP($J$18,Tablas!$A$365:$H$367,7,TRUE))) -> 2693 | M33: =IF($J$18=0,0,(VLOOKUP($J$18,Tablas!$A$365:$H$367,8,TRUE))) -> 1804
F34: Prima Rider Complic. Maternidad | H34: n/a | I34: =+IF($I$20=FALSE,0,Tablas!D$368) -> 0 | J34: =+IF($I$20=FALSE,0,Tablas!E$368) -> 0 | K34: =+IF($I$20=FALSE,0,Tablas!F$368) -> 0 | L34: =+IF($I$20=FALSE,0,Tablas!G$368) -> 0 | M34: =+IF($I$20=FALSE,0,Tablas!H$368) -> 0
F35: Prima Rider Trasplante Organos | H35: n/a | I35: =IF($I$22=FALSE,0,Tablas!D$369) -> 0 | J35: =IF($I$22=FALSE,0,Tablas!E$369) -> 0 | K35: =IF($I$22=FALSE,0,Tablas!F$369) -> 0 | L35: =IF($I$22=FALSE,0,Tablas!G$369) -> 0 | M35: =IF($I$22=FALSE,0,Tablas!H$369) -> 0
F36: TOTAL PRIMA NETA : | H36: n/a | I36: =SUM(I31:I35) -> 14162 | J36: 10278 | K36: 7390 | L36: 6030 | M36: 4439
F37: Costo Administrativo Anual : | H37: n/a | I37: 75 | J37: 75 | K37: 75 | L37: 75 | M37: 75
F38: GRAN TOTAL : | H38: n/a | I38: =SUM(I36:I37) -> 14237 | J38: =SUM(J36:J37) -> 10353 | K38: =SUM(K36:K37) -> 7465 | L38: =SUM(L36:L37) -> 6105 | M38: =SUM(M36:M37) -> 4514
F40: Tarifas Semestrales
F41: Prima de Titular : | H41: n/a | I41: =VLOOKUP($M$16,Tablas!$A$374:$H$397,4,TRUE) -> 4343.35 | J41: =VLOOKUP($M$16,Tablas!$A$374:$H$397,5,TRUE) -> 3257.91 | K41: =VLOOKUP($M$16,Tablas!$A$374:$H$397,6,TRUE) -> 2308.68 | L41: =VLOOKUP($M$16,Tablas!$A$374:$H$397,7,TRUE) -> 1768.61 | M41: =VLOOKUP($M$16,Tablas!$A$374:$H$397,8,TRUE) -> 1396.55
F42: Prima de Cónyuge | H42: n/a | I42: =IF($J$16=1,0,(VLOOKUP($M$18,Tablas!$A$374:$H$397,4,TRUE))) -> 0 | J42: =IF($J$16=1,0,(VLOOKUP($M$18,Tablas!$A$374:$H$397,5,TRUE))) -> 0 | K42: =IF($J$16=1,0,(VLOOKUP($M$18,Tablas!$A$374:$H$397,6,TRUE))) -> 0 | L42: =IF($J$16=1,0,(VLOOKUP($M$18,Tablas!$A$374:$H$397,7,TRUE))) -> 0 | M42: =IF($J$16=1,0,(VLOOKUP($M$18,Tablas!$A$374:$H$397,8,TRUE))) -> 0
F43: Primas Hijos : | H43: n/a | I43: =IF($J$18=0,0,(VLOOKUP($J$18,Tablas!$A$398:$H$400,4,TRUE))) -> 3162.51 | J43: =IF($J$18=0,0,(VLOOKUP($J$18,Tablas!$A$398:$H$400,5,TRUE))) -> 2189.43 | K43: =IF($J$18=0,0,(VLOOKUP($J$18,Tablas!$A$398:$H$400,6,TRUE))) -> 1608.02 | L43: =IF($J$18=0,0,(VLOOKUP($J$18,Tablas!$A$398:$H$400,7,TRUE))) -> 1427.29 | M43: =IF($J$18=0,0,(VLOOKUP($J$18,Tablas!$A$398:$H$400,8,TRUE))) -> 956.12
F44: Prima Rider Complic. Maternidad | H44: n/a | I44: =+IF($I$20=FALSE,0,Tablas!D$401) -> 0 | J44: =+IF($I$20=FALSE,0,Tablas!E$401) -> 0 | K44: =+IF($I$20=FALSE,0,Tablas!F$401) -> 0 | L44: =+IF($I$20=FALSE,0,Tablas!G$401) -> 0 | M44: =+IF($I$20=FALSE,0,Tablas!H$401) -> 0
F45: Prima Rider Trasplante Organos | H45: n/a | I45: =IF($I$22=FALSE,0,Tablas!D$402) -> 0 | J45: =IF($I$22=FALSE,0,Tablas!E$402) -> 0 | K45: =IF($I$22=FALSE,0,Tablas!F$402) -> 0 | L45: =IF($I$22=FALSE,0,Tablas!G$402) -> 0 | M45: =IF($I$22=FALSE,0,Tablas!H$402) -> 0
F46: TOTAL PRIMA NETA : | H46: n/a | I46: =SUM(I41:I45) -> 7505.86 | J46: 5447.34 | K46: 3916.7 | L46: 3195.9 | M46: 2352.67
F47: Costo Administrativo Anual : | H47: n/a | I47: 75 | J47: 75 | K47: 75 | L47: 75 | M47: 75
F48: GRAN TOTAL (1ra Cuota) : | H48: n/a | I48: =SUM(I46:I47) -> 7580.86 | J48: =SUM(J46:J47) -> 5522.34 | K48: =SUM(K46:K47) -> 3991.7 | L48: =SUM(L46:L47) -> 3270.9 | M48: =SUM(M46:M47) -> 2427.67
F49: GRAN TOTAL (2da Cuota) : | H49: n/a | I49: =I46 -> 7505.86 | J49: =J46 -> 5447.34 | K49: 3916.7 | L49: 3195.9 | M49: 2352.67
F50: Tarifas en US $ - Válidas desde 01 Ene 2023

Sheet Secure
C10: Cotización de Seguro Médico Internacional - Bupa SECURE Care
H12: =+'INGRESO DE DATOS'!$D$12 -> NOMBRE COMPLETO
H14: =+'INGRESO DE DATOS'!$D$21 -> AGENCIA
J16: =+'INGRESO DE DATOS'!$G$14 -> 1 | M16: =+'INGRESO DE DATOS'!$G$16 -> 18
F17: FECHA DE COTIZACION :
F18: =NOW() -> 2023-08-16T10:35:39.970 | J18: =+'INGRESO DE DATOS'!$J$14 -> 2 | M18: =+'INGRESO DE DATOS'!$J$16 -> 18
I20: TRUE | K20: COMPLICACIONES DE MATERNIDAD
I22: TRUE | K22: TRASPLANTE DE ORGANOS
F25: Deducibles | H25: PLAN 1 | I25: PLAN 2 | J25: PLAN 3 | K25: PLAN 4 | L25: PLAN 5 | M25: PLAN 6
F26: Dentro del pais de residencia | H26: n/a | I26: 1000 | J26: 2000 | K26: 5000 | L26: 10000 | M26: 20000
F27: Fuera del pais de residencia | H27: n/a | I27: 2000 | J27: 3000 | K27: 5000 | L27: 10000 | M27: 20000
F30: Tarifas Anuales
F31: Prima de Titular : | H31: n/a | I31: =VLOOKUP($M$16,Tablas!$A$408:$H$431,4,TRUE) -> 8581 | J31: =VLOOKUP($M$16,Tablas!$A$408:$H$431,5,TRUE) -> 6732 | K31: =VLOOKUP($M$16,Tablas!$A$408:$H$431,6,TRUE) -> 4681 | L31: =VLOOKUP($M$16,Tablas!$A$408:$H$431,7,TRUE) -> 3947 | M31: =VLOOKUP($M$16,Tablas!$A$408:$H$431,8,TRUE) -> 3008
F32: Prima de Cónyuge | H32: n/a | I32: =IF($J$16=1,0,(VLOOKUP($M$18,Tablas!$A$408:$H$431,4,TRUE))) -> 0 | J32: =IF($J$16=1,0,(VLOOKUP($M$18,Tablas!$A$408:$H$431,5,TRUE))) -> 0 | K32: =IF($J$16=1,0,(VLOOKUP($M$18,Tablas!$A$408:$H$431,6,TRUE))) -> 0 | L32: =IF($J$16=1,0,(VLOOKUP($M$18,Tablas!$A$408:$H$431,7,TRUE))) -> 0 | M32: =IF($J$16=1,0,(VLOOKUP($M$18,Tablas!$A$408:$H$431,8,TRUE))) -> 0
F33: Primas Hijos : | H33: n/a | I33: =IF($J$18=0,0,(VLOOKUP($J$18,Tablas!$A$432:$H$434,4,TRUE))) -> 6987 | J33: =IF($J$18=0,0,(VLOOKUP($J$18,Tablas!$A$432:$H$434,5,TRUE))) -> 3638 | K33: =IF($J$18=0,0,(VLOOKUP($J$18,Tablas!$A$432:$H$434,6,TRUE))) -> 2976 | L33: =IF($J$18=0,0,(VLOOKUP($J$18,Tablas!$A$432:$H$434,7,TRUE))) -> 2494 | M33: =IF($J$18=0,0,(VLOOKUP($J$18,Tablas!$A$432:$H$434,8,TRUE))) -> 1862
F34: Prima Rider Complic. Maternidad | H34: n/a | I34: =+IF($I$20=FALSE,0,Tablas!D$435) -> 225 | J34: =+IF($I$20=FALSE,0,Tablas!E$435) -> 225 | K34: =+IF($I$20=FALSE,0,Tablas!F$435) -> 225 | L34: =+IF($I$20=FALSE,0,Tablas!G$435) -> 225 | M34: =+IF($I$20=FALSE,0,Tablas!H$435) -> 225
F35: Prima Rider Trasplante Organos | H35: n/a | I35: =IF($I$22=FALSE,0,Tablas!D$436) -> 300 | J35: =IF($I$22=FALSE,0,Tablas!E$436) -> 300 | K35: =IF($I$22=FALSE,0,Tablas!F$436) -> 300 | L35: =IF($I$22=FALSE,0,Tablas!G$436) -> 300 | M35: =IF($I$22=FALSE,0,Tablas!H$436) -> 300
F36: TOTAL PRIMA NETA : | H36: n/a | I36: =SUM(I31:I35) -> 16093 | J36: 10895 | K36: 8182 | L36: 6966 | M36: 5395
F37: Costo Administrativo Anual : | H37: n/a | I37: 75 | J37: 75 | K37: 75 | L37: 75 | M37: 75
F38: GRAN TOTAL : | H38: n/a | I38: =SUM(I36:I37) -> 16168 | J38: =SUM(J36:J37) -> 10970 | K38: =SUM(K36:K37) -> 8257 | L38: =SUM(L36:L37) -> 7041 | M38: =SUM(M36:M37) -> 5470
F40: Tarifas Semestrales
F41: Prima de Titular : | H41: n/a | I41: =VLOOKUP($M$16,Tablas!$A$441:$H$464,4,TRUE) -> 4547.93 | J41: =VLOOKUP($M$16,Tablas!$A$441:$H$464,5,TRUE) -> 3567.96 | K41: =VLOOKUP($M$16,Tablas!$A$441:$H$464,6,TRUE) -> 2480.93 | L41: =VLOOKUP($M$16,Tablas!$A$441:$H$464,7,TRUE) -> 2091.91 | M41: =VLOOKUP($M$16,Tablas!$A$441:$H$464,8,TRUE) -> 1594.24
F42: Prima de Cónyuge | H42: n/a | I42: =IF($J$16=1,0,(VLOOKUP($M$18,Tablas!$A$441:$H$464,4,TRUE))) -> 0 | J42: =IF($J$16=1,0,(VLOOKUP($M$18,Tablas!$A$441:$H$464,5,TRUE))) -> 0 | K42: =IF($J$16=1,0,(VLOOKUP($M$18,Tablas!$A$441:$H$464,6,TRUE))) -> 0 | L42: =IF($J$16=1,0,(VLOOKUP($M$18,Tablas!$A$441:$H$464,7,TRUE))) -> 0 | M42: =IF($J$16=1,0,(VLOOKUP($M$18,Tablas!$A$441:$H$464,8,TRUE))) -> 0
F43: Primas Hijos : | H43: n/a | I43: =IF($J$18=0,0,(VLOOKUP($J$18,Tablas!$A$465:$H$467,4,TRUE))) -> 3703.11 | J43: =IF($J$18=0,0,(VLOOKUP($J$18,Tablas!$A$465:$H$467,5,TRUE))) -> 1928.14 | K43: =IF($J$18=0,0,(VLOOKUP($J$18,Tablas!$A$465:$H$467,6,TRUE))) -> 1577.28 | L43: =IF($J$18=0,0,(VLOOKUP($J$18,Tablas!$A$465:$H$467,7,TRUE))) -> 1321.82 | M43: =IF($J$18=0,0,(VLOOKUP($J$18,Tablas!$A$465:$H$467,8,TRUE))) -> 986.86
F44: Prima Rider Complic. Maternidad | H44: n/a | I44: =+IF($I$20=FALSE,0,Tablas!D$468) -> 119.25 | J44: =+IF($I$20=FALSE,0,Tablas!E$468) -> 119.25 | K44: =+IF($I$20=FALSE,0,Tablas!F$468) -> 119.25 | L44: =+IF($I$20=FALSE,0,Tablas!G$468) -> 119.25 | M44: =+IF($I$20=FALSE,0,Tablas!H$468) -> 119.25
F45: Prima Rider Trasplante Organos | H45: n/a | I45: =IF($I$22=FALSE,0,Tablas!D$469) -> 159 | J45: =IF($I$22=FALSE,0,Tablas!E$469) -> 159 | K45: =IF($I$22=FALSE,0,Tablas!F$469) -> 159 | L45: =IF($I$22=FALSE,0,Tablas!G$469) -> 159 | M45: =IF($I$22=FALSE,0,Tablas!H$469) -> 159
F46: TOTAL PRIMA NETA : | H46: n/a | I46: =SUM(I41:I45) -> 8529.29 | J46: 5774.35 | K46: 4336.46 | L46: 3691.98 | M46: 2859.35
F47: Costo Administrativo Anual : | H47: n/a | I47: 75 | J47: 75 | K47: 75 | L47: 75 | M47: 75
F48: GRAN TOTAL (1ra Cuota) : | H48: n/a | I48: =SUM(I46:I47) -> 8604.29 | J48: =SUM(J46:J47) -> 5849.35 | K48: =SUM(K46:K47) -> 4411.46 | L48: =SUM(L46:L47) -> 3766.98 | M48: =SUM(M46:M47) -> 2934.35
F49: GRAN TOTAL (2da Cuota) : | H49: n/a | I49: =I46 -> 8529.29 | J49: =J46 -> 5774.35 | K49: 4336.46 | L49: 3691.98 | M49: 2859.35
F50: Tarifas en US $ - Válidas desde 01 enero 2023
F52: Este presupuesto solamente tiene carácter informativo y en ningún momento expresa compromiso legal para suministrarle cobertura de seguro. La emisión de una póliza de seguro Bupa está sujeta a todas las evaluaciones de riesgo por parte de Bupa y a la recepción de todos los pagos de prima requeridos.

Sheet Essential
C10: Cotización de Seguro Médico Internacional - Bupa ESSENTIAL Care
H12: =+'INGRESO DE DATOS'!$D$12 -> NOMBRE COMPLETO
H14: =+'INGRESO DE DATOS'!$D$21 -> AGENCIA
J16: =+'INGRESO DE DATOS'!$G$14 -> 1 | M16: =+'INGRESO DE DATOS'!$G$16 -> 18
F17: FECHA DE COTIZACION :
F18: =NOW() -> 2023-08-16T10:35:39.970 | J18: =+'INGRESO DE DATOS'!$J$14 -> 2 | M18: =+'INGRESO DE DATOS'!$J$16 -> 18
I20: TRUE | K20: COMPLICACIONES DE MATERNIDAD
I22: TRUE | K22: TRASPLANTE DE ORGANOS
F25: Deducibles | H25: PLAN 1 | I25: PLAN 2 | J25: PLAN 3 | K25: PLAN 4 | L25: PLAN 5 | M25: PLAN 6
F26: Dentro del pais de residencia | H26: n/a | I26: 1000 | J26: 2000 | K26: 5000 | L26: 10000 | M26: 20000
F27: Fuera del pais de residencia | H27: n/a | I27: 2000 | J27: 3000 | K27: 5000 | L27: 10000 | M27: 20000
F30: Tarifas Anuales
F31: Prima de Titular : | H31: n/a | I31: =VLOOKUP($M$16,Tablas!$A$475:$H$498,4,TRUE) -> 7086 | J31: =VLOOKUP($M$16,Tablas!$A$475:$H$498,5,TRUE) -> 5248 | K31: =VLOOKUP($M$16,Tablas!$A$475:$H$498,6,TRUE) -> 3873 | L31: =VLOOKUP($M$16,Tablas!$A$475:$H$498,7,TRUE) -> 3256 | M31: =VLOOKUP($M$16,Tablas!$A$475:$H$498,8,TRUE) -> 2467
F32: Prima de Cónyuge | H32: n/a | I32: =IF($J$16=1,0,(VLOOKUP($M$18,Tablas!$A$475:$H$498,4,TRUE))) -> 0 | J32: =IF($J$16=1,0,(VLOOKUP($M$18,Tablas!$A$475:$H$498,5,TRUE))) -> 0 | K32: =IF($J$16=1,0,(VLOOKUP($M$18,Tablas!$A$475:$H$498,6,TRUE))) -> 0 | L32: =IF($J$16=1,0,(VLOOKUP($M$18,Tablas!$A$475:$H$498,7,TRUE))) -> 0 | M32: =IF($J$16=1,0,(VLOOKUP($M$18,Tablas!$A$475:$H$498,8,TRUE))) -> 0
F33: Primas Hijos : | H33: n/a | I33: =IF($J$18=0,0,(VLOOKUP($J$18,Tablas!$A$499:$H$501,4,TRUE))) -> 5788 | J33: =IF($J$18=0,0,(VLOOKUP($J$18,Tablas!$A$499:$H$501,5,TRUE))) -> 3017 | K33: =IF($J$18=0,0,(VLOOKUP($J$18,Tablas!$A$499:$H$501,6,TRUE))) -> 2464 | L33: =IF($J$18=0,0,(VLOOKUP($J$18,Tablas!$A$499:$H$501,7,TRUE))) -> 2064 | M33: =IF($J$18=0,0,(VLOOKUP($J$18,Tablas!$A$499:$H$501,8,TRUE))) -> 1548
F34: Prima Rider Complic. Maternidad | H34: n/a | I34: =+IF($I$20=FALSE,0,Tablas!D$502) -> 225 | J34: =+IF($I$20=FALSE,0,Tablas!E$502) -> 225 | K34: =+IF($I$20=FALSE,0,Tablas!F$502) -> 225 | L34: =+IF($I$20=FALSE,0,Tablas!G$502) -> 225 | M34: =+IF($I$20=FALSE,0,Tablas!H$502) -> 225
F35: Prima Rider Trasplante Organos | H35: n/a | I35: =IF($I$22=FALSE,0,Tablas!D$503) -> 300 | J35: =IF($I$22=FALSE,0,Tablas!E$503) -> 300 | K35: =IF($I$22=FALSE,0,Tablas!F$503) -> 300 | L35: =IF($I$22=FALSE,0,Tablas!G$503) -> 300 | M35: =IF($I$22=FALSE,0,Tablas!H$503) -> 300
F36: TOTAL PRIMA NETA : | H36: n/a | I36: =SUM(I31:I35) -> 13399 | J36: 8790 | K36: 6862 | L36: 5845 | M36: 4540
F37: Costo Administrativo Anual : | H37: n/a | I37: 75 | J37: 75 | K37: 75 | L37: 75 | M37: 75
F38: GRAN TOTAL : | H38: n/a | I38: =SUM(I36:I37) -> 13474 | J38: =SUM(J36:J37) -> 8865 | K38: =SUM(K36:K37) -> 6937 | L38: =SUM(L36:L37) -> 5920 | M38: =SUM(M36:M37) -> 4615
F40: Tarifas Semestrales
F41: Prima de Titular : | H41: n/a | I41: =VLOOKUP($M$16,Tablas!$A$508:$H$531,4,TRUE) -> 3755.58 | J41: =VLOOKUP($M$16,Tablas!$A$508:$H$531,5,TRUE) -> 2781.44 | K41: =VLOOKUP($M$16,Tablas!$A$508:$H$531,6,TRUE) -> 2052.69 | L41: =VLOOKUP($M$16,Tablas!$A$508:$H$531,7,TRUE) -> 1725.68 | M41: =VLOOKUP($M$16,Tablas!$A$508:$H$531,8,TRUE) -> 1307.51
F42: Prima de Cónyuge | H42: n/a | I42: =IF($J$16=1,0,(VLOOKUP($M$18,Tablas!$A$508:$H$531,4,TRUE))) -> 0 | J42: =IF($J$16=1,0,(VLOOKUP($M$18,Tablas!$A$508:$H$531,5,TRUE))) -> 0 | K42: =IF($J$16=1,0,(VLOOKUP($M$18,Tablas!$A$508:$H$531,6,TRUE))) -> 0 | L42: =IF($J$16=1,0,(VLOOKUP($M$18,Tablas!$A$508:$H$531,7,TRUE))) -> 0 | M42: =IF($J$16=1,0,(VLOOKUP($M$18,Tablas!$A$508:$H$531,8,TRUE))) -> 0
F43: Primas Hijos : | H43: n/a | I43: =IF($J$18=0,0,(VLOOKUP($J$18,Tablas!$A$532:$H$534,4,TRUE))) -> 3067.64 | J43: =IF($J$18=0,0,(VLOOKUP($J$18,Tablas!$A$532:$H$534,5,TRUE))) -> 1599.01 | K43: =IF($J$18=0,0,(VLOOKUP($J$18,Tablas!$A$532:$H$534,6,TRUE))) -> 1305.92 | L43: =IF($J$18=0,0,(VLOOKUP($J$18,Tablas!$A$532:$H$534,7,TRUE))) -> 1093.92 | M43: =IF($J$18=0,0,(VLOOKUP($J$18,Tablas!$A$532:$H$534,8,TRUE))) -> 820.44
F44: Prima Rider Complic. Maternidad | H44: n/a | I44: =+IF($I$20=FALSE,0,Tablas!D$535) -> 119.25 | J44: =+IF($I$20=FALSE,0,Tablas!E$535) -> 119.25 | K44: =+IF($I$20=FALSE,0,Tablas!F$535) -> 119.25 | L44: =+IF($I$20=FALSE,0,Tablas!G$535) -> 119.25 | M44: =+IF($I$20=FALSE,0,Tablas!H$535) -> 119.25
F45: Prima Rider Trasplante Organos | H45: n/a | I45: =IF($I$22=FALSE,0,Tablas!D$536) -> 159 | J45: =IF($I$22=FALSE,0,Tablas!E$536) -> 159 | K45: =IF($I$22=FALSE,0,Tablas!F$536) -> 159 | L45: =IF($I$22=FALSE,0,Tablas!G$536) -> 159 | M45: =IF($I$22=FALSE,0,Tablas!H$536) -> 159
F46: TOTAL PRIMA NETA : | H46: n/a | I46: =SUM(I41:I45) -> 7101.47 | J46: 4658.7 | K46: 3636.86 | L46: 3097.85 | M46: 2406.2
F47: Costo Administrativo Anual : | H47: n/a | I47: 75 | J47: 75 | K47: 75 | L47: 75 | M47: 75
F48: GRAN TOTAL (1ra Cuota) : | H48: n/a | I48: =SUM(I46:I47) -> 7176.47 | J48: =SUM(J46:J47) -> 4733.7 | K48: =SUM(K46:K47) -> 3711.86 | L48: =SUM(L46:L47) -> 3172.85 | M48: =SUM(M46:M47) -> 2481.2
F49: GRAN TOTAL (2da Cuota) : | H49: n/a | I49: =I46 -> 7101.47 | J49: =J46 -> 4658.7 | K49: 3636.86 | L49: 3097.85 | M49: 2406.2
F50: Tarifas en US $ - Válidas desde 01 enero 2023
F52: Este presupuesto solamente tiene carácter informativo y en ningún momento expresa compromiso legal para suministrarle cobertura de seguro. La emisión de una póliza de seguro Bupa está sujeta a todas las evaluaciones de riesgo por parte de Bupa y a la recepción de todos los pagos de prima requeridos.

Sheet Critical
C10: Cotización de Seguro Médico Internacional - Bupa CRITICAL Care
H12: =+'INGRESO DE DATOS'!$D$12 -> NOMBRE COMPLETO
H14: =+'INGRESO DE DATOS'!$D$21 -> AGENCIA
J16: =+'INGRESO DE DATOS'!$G$14 -> 1 | M16: =+'INGRESO DE DATOS'!$G$16 -> 18
F17: FECHA DE COTIZACION :
F18: =NOW() -> 2023-08-16T10:35:39.970 | J18: =+'INGRESO DE DATOS'!$J$14 -> 2 | M18: =+'INGRESO DE DATOS'!$J$16 -> 18
J20: TRUE | M20: =IF(M16>=M18,M16,M18) -> 18
F22: CONDICION CRITICA CUBIERTA | I22: MAXIMO POR AÑO POLIZA | K22: TRASPLANTE DE ORGANOS
F24: Enfermedades neurológicas y accidentes cerebro-vasculares | I24: 150000 | K24: Tipo de trasplante | M24: Máximo Vitalicio
I25: por asegurado por año póliza | M25: por persona
F26: Cirugías cardíacas y angioplastías | I26: 150000 | K26: Corazón | M26: 300000
I27: por asegurado por año póliza | K27: Corazón y Pulmón (simultáneamente) | M27: 300000
F28: Tratamiento de cáncer | I28: 200000 | K28: Pulmón | M28: 250000
I29: por asegurado por año póliza | K29: Pancreas | M29: 250000
F30: Trauma grave (Politraumatismos) | I30: 150000 | K30: Pancreas y Riñón (simultáneamente) | M30: 300000
I31: por asegurado por año póliza | K31: Riñón | M31: 200000
F32: Insuficiencia renal crónica (Diálisis) | I32: 100000 | K32: Hígado | M32: 200000
I33: por asegurado por año póliza | K33: Médula ósea | M33: 250000
F34: Quemaduras graves | I34: 300000 | K34: La cobertura de trasplante de órganos está limitada a la Red de Proveedores para Procedimiento de Trasplante de la Compañía y no se proporcionará cobertura en proveedores fuera de esta Red especializada.
I35: por asegurado por año póliza
F36: Desorden infeccioso grave (Septicemia) | I36: 150000
I37: por asegurado por año póliza
F39: Deducibles | H39: PLAN 1 | I39: PLAN 2 | J39: PLAN 3 | K39: PLAN 4 | L39: PLAN 5 | M39: PLAN 6
F40: Dentro del pais de residencia | H40: 2000 | I40: 3500 | J40: 5000 | K40: 10000 | L40: 20000 | M40: 50000
F41: Fuera del pais de residencia | H41: 2000 | I41: 3500 | J41: 5000 | K41: 10000 | L41: 20000 | M41: 50000
F43: Tarifas Anuales
F44: Prima por plan individual : | H44: =IF((($J$16+$J$18)=1),(VLOOKUP($M$20,Tablas!$A$543:$T$544,3,TRUE)),0) -> 0 | I44: =IF((($J$16+$J$18)=1),(VLOOKUP($M$20,Tablas!$A$543:$T$544,6,TRUE)),0) -> 0 | J44: =IF((($J$16+$J$18)=1),(VLOOKUP($M$20,Tablas!$A$543:$T$544,9,TRUE)),0) -> 0 | K44: =IF((($J$16+$J$18)=1),(VLOOKUP($M$20,Tablas!$A$543:$T$544,12,TRUE)),0) -> 0 | L44: =IF((($J$16+$J$18)=1),(VLOOKUP($M$20,Tablas!$A$543:$T$544,15,TRUE)),0) -> 0 | M44: =IF((($J$16+$J$18)=1),(VLOOKUP($M$20,Tablas!$A$543:$T$544,18,TRUE)),0) -> 0
F45: Prima por plan para 2 personas : | H45: =IF((($J$16+$J$18)=2),(VLOOKUP($M$20,Tablas!$A$543:$T$544,4,TRUE)),0) -> 0 | I45: =IF((($J$16+$J$18)=2),(VLOOKUP($M$20,Tablas!$A$543:$T$544,7,TRUE)),0) -> 0 | J45: =IF((($J$16+$J$18)=2),(VLOOKUP($M$20,Tablas!$A$543:$T$544,10,TRUE)),0) -> 0 | K45: =IF((($J$16+$J$18)=2),(VLOOKUP($M$20,Tablas!$A$543:$T$544,13,TRUE)),0) -> 0 | L45: =IF((($J$16+$J$18)=2),(VLOOKUP($M$20,Tablas!$A$543:$T$544,16,TRUE)),0) -> 0 | M45: =IF((($J$16+$J$18)=2),(VLOOKUP($M$20,Tablas!$A$543:$T$544,19,TRUE)),0) -> 0
F46: Prima por plan familiar : | H46: =IF((($J$16+$J$18)>=3),(VLOOKUP($M$20,Tablas!$A$543:$T$544,5,TRUE)),0) -> 12683 | I46: =IF((($J$16+$J$18)>=3),(VLOOKUP($M$20,Tablas!$A$543:$T$544,8,TRUE)),0) -> 10691 | J46: =IF((($J$16+$J$18)>=3),(VLOOKUP($M$20,Tablas!$A$543:$T$544,11,TRUE)),0) -> 9158 | K46: =IF((($J$16+$J$18)>=3),(VLOOKUP($M$20,Tablas!$A$543:$T$544,14,TRUE)),0) -> 6920 | L46: =IF((($J$16+$J$18)>=3),(VLOOKUP($M$20,Tablas!$A$543:$T$544,17,TRUE)),0) -> 4779 | M46: =IF((($J$16+$J$18)>=3),(VLOOKUP($M$20,Tablas!$A$543:$T$544,20,TRUE)),0) -> 2501
F47: TOTAL PRIMA NETA : | H47: =SUM(H44:H46) -> 12683 | I47: =SUM(I44:I46) -> 10691 | J47: 9158 | K47: 6920 | L47: 4779 | M47: 2501
F48: Costo Administrativo Anual : | H48: 75 | I48: 75 | J48: 75 | K48: 75 | L48: 75 | M48: 75
F49: GRAN TOTAL : | H49: =SUM(H47:H48) -> 12758 | I49: 10766 | J49: 9233 | K49: 6995 | L49: 4854 | M49: 2576
F50: Tarifas en US $ - Válidas desde 01 enero 2023
F53: Este presupuesto solamente tiene carácter informativo y en ningún momento expresa compromiso legal para suministrarle cobertura de seguro. La emisión de una póliza de seguro Bupa está sujeta a todas las evaluaciones de riesgo por parte de Bupa y a la recepción de todos los pagos de prima requeridos.

Sheet Resumen tarifas anuales
A12: Cotización de Seguro Médico Internacional - BUPA CARE
C14: =+'INGRESO DE DATOS'!$D$12 -> NOMBRE COMPLETO
C16: =+'INGRESO DE DATOS'!$D$21 -> AGENCIA
E18: =+'INGRESO DE DATOS'!$G$14 -> 1 | H18: =+'INGRESO DE DATOS'!$G$16 -> 18
A19: FECHA DE COTIZACION :
A20: =NOW() -> 2023-08-16T10:35:39.970 | E20: =+'INGRESO DE DATOS'!$J$14 -> 2 | H20: =+'INGRESO DE DATOS'!$J$16 -> 18
A22: Deducibles | C22: PLAN 1 | D22: PLAN 2 | E22: PLAN 3 | F22: PLAN 4 | G22: PLAN 5 | H22: PLAN 6
A23: Dentro del pais de residencia | C23: n/a | D23: 1000 | E23: 2000 | F23: 5000 | G23: 10000 | H23: 20000
A24: Fuera del pais de residencia | C24: n/a | D24: 2000 | E24: 3000 | F24: 5000 | G24: 10000 | H24: 20000
A26: PRODUCTOS | C26: Tarifas Anuales
A27: Bupa Exclusive Care | C27: n/a | D27: =+Exclusive!I37 -> 29194 | E27: =+Exclusive!J37 -> 20112 | F27: =+Exclusive!K37 -> 14446 | G27: =+Exclusive!L37 -> 11101 | H27: =+Exclusive!M37 -> 8762
A28: Bupa Privilege Care | C28: n/a | D28: =+Privilege!I37 -> 24535 | E28: =+Privilege!J37 -> 17269 | F28: =+Privilege!K37 -> 11898 | G28: =+Privilege!L37 -> 9085 | H28: =+Privilege!M37 -> 6856
A29: Bupa Advantage Care | C29: n/a | D29: =+'Advantage (Mundial)'!I38 -> 18867 | E29: =+'Advantage (Mundial)'!J38 -> 13858 | F29: =+'Advantage (Mundial)'!K38 -> 10151 | G29: =+'Advantage (Mundial)'!L38 -> 8384 | H29: =+'Advantage (Mundial)'!M38 -> 6353
A30: Bupa Secure Care | C30: n/a | D30: =+Secure!I38 -> 16168 | E30: =+Secure!J38 -> 10970 | F30: =+Secure!K38 -> 8257 | G30: =+Secure!L38 -> 7041 | H30: =+Secure!M38 -> 5470
A31: Bupa Essential Care | C31: n/a | D31: =+Essential!I38 -> 13474 | E31: =+Essential!J38 -> 8865 | F31: =+Essential!K38 -> 6937 | G31: =+Essential!L38 -> 5920 | H31: =+Essential!M38 -> 4615
A33: Deducibles | C33: PLAN 1 | D33: PLAN 2 | E33: PLAN 3 | F33: PLAN 4 | G33: PLAN 5 | H33: PLAN 6
A34: Dentro del pais de residencia | C34: 2000 | D34: 3500 | E34: 5000 | F34: 10000 | G34: 20000 | H34: 50000
A35: Fuera del pais de residencia | C35: 2000 | D35: 3500 | E35: 5000 | F35: 10000 | G35: 20000 | H35: 50000
C36: Tarifas Anuales
A37: Bupa Critical Care | C37: =+Critical!H49 -> 12758 | D37: =+Critical!I49 -> 10766 | E37: =+Critical!J49 -> 9233 | F37: =+Critical!K49 -> 6995 | G37: =+Critical!L49 -> 4854 | H37: =+Critical!M49 -> 2576
A38: Tarifas en US $ - Válidas desde 01 enero 2023
A40: Este presupuesto solamente tiene carácter informativo y en ningún momento expresa compromiso legal para suministrarle cobertura de seguro. La emisión de una póliza de seguro Bupa está sujeta a todas las evaluaciones de riesgo por parte de Bupa y a la recepción de todos los pagos de prima requeridos.

Sheet Comparacion de Beneficios
B2: 2023 BUPA CARE COMPARACION DE BENEFICIOS

Sheet Tablas (hidden)
A2: EXCLUSIVE | J2: FACTOR SEMESTRAL : | L2: 0.53
A3: TARIFAS ANUALES
A4: EDAD | J4: 2 | K4: 6 | L4: 10 | M4: 14 | N4: 18
D5: DW2 | E5: DW3 | F5: DW4 | G5: DW5 | H5: DW6 | J5: DW2 | K5: DW3 | L5: DW4 | M5: DW5 | N5: DW6
A6: 18 | B6: 18-24 | D6: 18751 | E6: 12385 | F6: 8260 | G6: 5853 | H6: 4609 | J6: 0 | K6: 0 | L6: 0 | M6: 0 | N6: 0
A7: 25 | B7: 25-29 | D7: 19663 | E7: 13686 | F7: 9152 | G7: 6500 | H7: 5104 | J7: 0 | K7: 0 | L7: 0 | M7: 0 | N7: 0
A8: 30 | B8: 30-34 | D8: 20455 | E8: 14680 | F8: 10247 | G8: 7781 | H8: 6137 | J8: 0 | K8: 0 | L8: 0 | M8: 0 | N8: 0
A9: 35 | B9: 35-39 | D9: 22909 | E9: 16438 | F9: 11489 | G9: 8727 | H9: 6874 | J9: 0 | K9: 0 | L9: 0 | M9: 0 | N9: 0
A10: 40 | B10: 40-44 | D10: 26568 | E10: 17980 | F10: 12749 | G10: 9603 | H10: 7553 | J10: 0 | K10: 0 | L10: 0 | M10: 0 | N10: 0
A11: 45 | B11: 45-49 | D11: 29700 | E11: 20107 | F11: 14262 | G11: 10728 | H11: 8451 | J11: 0 | K11: 0 | L11: 0 | M11: 0 | N11: 0
A12: 50 | B12: 50-54 | D12: 38011 | E12: 26401 | F12: 18607 | G12: 15163 | H12: 11956 | J12: 0 | K12: 0 | L12: 0 | M12: 0 | N12: 0
A13: 55 | B13: 55-59 | D13: 40443 | E13: 28087 | F13: 19802 | G13: 16140 | H13: 12725 | J13: 0 | K13: 0 | L13: 0 | M13: 0 | N13: 0
A14: 60 | B14: 60 | D14: 44065 | E14: 30652 | F14: 22784 | G14: 19442 | H14: 15818 | J14: 0 | K14: 0 | L14: 0 | M14: 0 | N14: 0
A15: 61 | B15: 61 | D15: 47348 | E15: 32927 | F15: 24475 | G15: 20905 | H15: 16994 | J15: 0 | K15: 0 | L15: 0 | M15: 0 | N15: 0
A16: 62 | B16: 62 | D16: 51833 | E16: 36066 | F16: 26808 | G16: 22882 | H16: 18607 | J16: 0 | K16: 0 | L16: 0 | M16: 0 | N16: 0
A17: 63 | B17: 63 | D17: 55118 | E17: 38343 | F17: 28500 | G17: 24336 | H17: 19787 | J17: 0 | K17: 0 | L17: 0 | M17: 0 | N17: 0
A18: 64 | B18: 64 | D18: 59620 | E18: 41508 | F18: 30841 | G18: 26329 | H18: 21410 | J18: 0 | K18: 0 | L18: 0 | M18: 0 | N18: 0
A19: 65 | B19: 65 | D19: 77949 | E19: 54132 | F19: 38998 | G19: 35126 | H19: 30212 | J19: 0 | K19: 0 | L19: 0 | M19: 0 | N19: 0
A20: 66 | B20: 66 | D20: 90561 | E20: 62906 | F20: 45313 | G20: 40832 | H20: 35109 | J20: 0 | K20: 0 | L20: 0 | M20: 0 | N20: 0
A21: 67 | B21: 67 | D21: 98914 | E21: 68704 | F21: 49502 | G21: 44576 | H21: 38343 | J21: 0 | K21: 0 | L21: 0 | M21: 0 | N21: 0
A22: 68 | B22: 68 | D22: 109530 | E22: 76072 | F22: 54815 | G22: 49390 | H22: 42464 | J22: 0 | K22: 0 | L22: 0 | M22: 0 | N22: 0
A23: 69 | B23: 69 | D23: 120510 | E23: 83699 | F23: 60320 | G23: 54336 | H23: 46726 | J23: 0 | K23: 0 | L23: 0 | M23: 0 | N23: 0
A24: 70 | B24: 70 | D24: 148323 | E24: 101924 | F24: 71005 | G24: 63318 | H24: 54970 | J24: 0 | K24: 0 | L24: 0 | M24: 0 | N24: 0
A25: 71 | B25: 71 | D25: 154156 | E25: 105927 | F25: 73795 | G25: 65810 | H25: 57137 | J25: 0 | K25: 0 | L25: 0 | M25: 0 | N25: 0
A26: 72 | B26: 72 | D26: 158521 | E26: 108919 | F26: 75874 | G26: 67668 | H26: 58752 | J26: 0 | K26: 0 | L26: 0 | M26: 0 | N26: 0
A27: 73 | B27: 73 | D27: 164345 | E27: 112935 | F27: 78665 | G27: 70163 | H27: 60915 | J27: 0 | K27: 0 | L27: 0 | M27: 0 | N27: 0
A28: 74 | B28: 74 | D28: 167250 | E28: 114923 | F28: 80063 | G28: 71405 | H28: 61984 | J28: 0 | K28: 0 | L28: 0 | M28: 0 | N28: 0
A29: 75 | B29: 75+ | D29: 174533 | E29: 119930 | F29: 83546 | G29: 74520 | H29: 64697 | J29: 0 | K29: 0 | L29: 0 | M29: 0 | N29: 0
A30: 1 | B30: 1 Child | D30: 6518 | E30: 4802 | F30: 3698 | G30: 3117 | H30: 2433 | J30: 0 | K30: 0 | L30: 0 | M30: 0 | N30: 0
A31: 2 | B31: 2 Children | D31: 10368 | E31: 7652 | F31: 5886 | G31: 4948 | H31: 3853 | J31: 0 | K31: 0 | L31: 0 | M31: 0 | N31: 0
A32: 3 | B32: 3+ Children | D32: 15189 | E32: 11208 | F32: 8614 | G32: 7256 | H32: 5655 | J32: 0 | K32: 0 | L32: 0 | M32: 0 | N32: 0
A33: 1 | B33: Rider Comp. Maternidad | D33: 0 | E33: 0 | F33: 225 | G33: 225 | H33: 225
A34: 1 | B34: Transplante de organos | D34: 0 | E34: 0 | F34: 0 | G34: 0 | H34: 0
A36: TARIFAS SEMESTRALES
A37: EDAD
D38: DW2 | E38: DW3 | F38: DW4 | G38: DW5 | H38: DW6 | J38: 3 | K38: 7 | L38: 11 | M38: 15 | N38: 19
A39: 18 | B39: 18-24 | D39: =$L$2*D6 -> 9938.03 | E39: =$L$2*E6 -> 6564.05 | F39: 4377.8 | G39: 3102.09 | H39: 2442.77 | J39: 0 | K39: 0 | L39: 0 | M39: 0 | N39: 0
A40: 25 | B40: 25-29 | D40: =$L$2*D7 -> 10421.39 | E40: 7253.58 | F40: 4850.56 | G40: 3445 | H40: 2705.12 | J40: 0 | K40: 0 | L40: 0 | M40: 0 | N40: 0
A41: 30 | B41: 30-34 | D41: 10841.15 | E41: 7780.4 | F41: 5430.91 | G41: 4123.93 | H41: 3252.61 | J41: 0 | K41: 0 | L41: 0 | M41: 0 | N41: 0
A42: 35 | B42: 35-39 | D42: 12141.77 | E42: 8712.14 | F42: 6089.17 | G42: 4625.31 | H42: 3643.22 | J42: 0 | K42: 0 | L42: 0 | M42: 0 | N42: 0
A43: 40 | B43: 40-44 | D43: 14081.04 | E43: 9529.4 | F43: 6756.97 | G43: 5089.59 | H43: 4003.09 | J43: 0 | K43: 0 | L43: 0 | M43: 0 | N43: 0
A44: 45 | B44: 45-49 | D44: 15741 | E44: 10656.71 | F44: 7558.86 | G44: 5685.84 | H44: 4479.03 | J44: 0 | K44: 0 | L44: 0 | M44: 0 | N44: 0
A45: 50 | B45: 50-54 | D45: 20145.83 | E45: 13992.53 | F45: 9861.71 | G45: 8036.39 | H45: 6336.68 | J45: 0 | K45: 0 | L45: 0 | M45: 0 | N45: 0
A46: 55 | B46: 55-59 | D46: 21434.79 | E46: 14886.11 | F46: 10495.06 | G46: 8554.2 | H46: 6744.25 | J46: 0 | K46: 0 | L46: 0 | M46: 0 | N46: 0
A47: 60 | B47: 60 | D47: 23354.45 | E47: 16245.56 | F47: 12075.52 | G47: 10304.26 | H47: 8383.54 | J47: 0 | K47: 0 | L47: 0 | M47: 0 | N47: 0
A48: 61 | B48: 61 | D48: 25094.44 | E48: 17451.31 | F48: 12971.75 | G48: 11079.65 | H48: 9006.82 | J48: 0 | K48: 0 | L48: 0 | M48: 0 | N48: 0
A49: 62 | B49: 62 | D49: 27471.49 | E49: 19114.98 | F49: 14208.24 | G49: 12127.46 | H49: 9861.71 | J49: 0 | K49: 0 | L49: 0 | M49: 0 | N49: 0
A50: 63 | B50: 63 | D50: 29212.54 | E50: 20321.79 | F50: 15105 | G50: 12898.08 | H50: 10487.11 | J50: 0 | K50: 0 | L50: 0 | M50: 0 | N50: 0
A51: 64 | B51: 64 | D51: 31598.6 | E51: 21999.24 | F51: 16345.73 | G51: 13954.37 | H51: 11347.3 | J51: 0 | K51: 0 | L51: 0 | M51: 0 | N51: 0
A52: 65 | B52: 65 | D52: 41312.97 | E52: 28689.96 | F52: 20668.94 | G52: 18616.78 | H52: 16012.36 | J52: 0 | K52: 0 | L52: 0 | M52: 0 | N52: 0
A53: 66 | B53: 66 | D53: 47997.33 | E53: 33340.18 | F53: 24015.89 | G53: 21640.96 | H53: 18607.77 | J53: 0 | K53: 0 | L53: 0 | M53: 0 | N53: 0
A54: 67 | B54: 67 | D54: 52424.42 | E54: 36413.12 | F54: 26236.06 | G54: 23625.28 | H54: 20321.79 | J54: 0 | K54: 0 | L54: 0 | M54: 0 | N54: 0
A55: 68 | B55: 68 | D55: 58050.9 | E55: 40318.16 | F55: 29051.95 | G55: 26176.7 | H55: 22505.92 | J55: 0 | K55: 0 | L55: 0 | M55: 0 | N55: 0
A56: 69 | B56: 69 | D56: 63870.3 | E56: 44360.47 | F56: 31969.6 | G56: 28798.08 | H56: 24764.78 | J56: 0 | K56: 0 | L56: 0 | M56: 0 | N56: 0
A57: 70 | B57: 70 | D57: 78611.19 | E57: 54019.72 | F57: 37632.65 | G57: 33558.54 | H57: 29134.1 | J57: 0 | K57: 0 | L57: 0 | M57: 0 | N57: 0
A58: 71 | B58: 71 | D58: 81702.68 | E58: 56141.31 | F58: 39111.35 | G58: 34879.3 | H58: 30282.61 | J58: 0 | K58: 0 | L58: 0 | M58: 0 | N58: 0
A59: 72 | B59: 72 | D59: 84016.13 | E59: 57727.07 | F59: 40213.22 | G59: 35864.04 | H59: 31138.56 | J59: 0 | K59: 0 | L59: 0 | M59: 0 | N59: 0
A60: 73 | B60: 73 | D60: 87102.85 | E60: 59855.55 | F60: 41692.45 | G60: 37186.39 | H60: 32284.95 | J60: 0 | K60: 0 | L60: 0 | M60: 0 | N60: 0
A61: 74 | B61: 74 | D61: 88642.5 | E61: 60909.19 | F61: 42433.39 | G61: 37844.65 | H61: 32851.52 | J61: 0 | K61: 0 | L61: 0 | M61: 0 | N61: 0
A62: 75 | B62: 75+ | D62: 92502.49 | E62: 63562.9 | F62: 44279.38 | G62: 39495.6 | H62: 34289.41 | J62: 0 | K62: 0 | L62: 0 | M62: 0 | N62: 0
A63: 1 | B63: 1 Child | D63: =$L$2*D30 -> 3454.54 | E63: 2545.06 | F63: 1959.94 | G63: 1652.01 | H63: 1289.49 | J63: 0 | K63: 0 | L63: 0 | M63: 0 | N63: 0
A64: 2 | B64: 2 Children | D64: =$L$2*D31 -> 5495.04 | E64: 4055.56 | F64: 3119.58 | G64: 2622.44 | H64: 2042.09 | J64: 0 | K64: 0 | L64: 0 | M64: 0 | N64: 0
A65: 3 | B65: 3+ Children | D65: =$L$2*D32 -> 8050.17 | E65: 5940.24 | F65: 4565.42 | G65: 3845.68 | H65: 2997.15 | J65: 0 | K65: 0 | L65: 0 | M65: 0 | N65: 0
A66: 1 | B66: Rider Comp. Maternidad | D66: =+D33*$L$2 -> 0 | E66: 0 | F66: 119.25 | G66: 119.25 | H66: 119.25
A67: 1 | B67: Transplante de organos | D67: 0 | E67: 0 | F67: 0 | G67: 0 | H67: 0
A69: DIAMOND (LATINAMERICA ONLY)
A70: TARIFAS ANUALES
A71: EDAD
A73: 18 | B73: - 24
A74: 25 | B74: - 29
A75: 30 | B75: - 34
A76: 35 | B76: - 39
A77: 40 | B77: - 44
A78: 45 | B78: - 49
A79: 50 | B79: - 54
A80: 55 | B80: - 59
A81: 60
A82: 61
A83: 62
A84: 63
A85: 64
A86: 65
A87: 66
A88: 67
A89: 68
A90: 69
A91: 70
A92: 71
A93: 72
A94: 73
A95: 74
A96: 75 | B96: o más
A97: 1 | B97: Hijo
A98: 2 | B98: Hijos
A99: 3 | B99: Hijos o más
A100: 1 | B100: Rider Comp. Maternidad
A101: 1 | B101: Transplante de organos | C101: 0 | D101: 0 | E101: 0 | F101: 0 | G101: 0 | H101: 0
A103: TARIFAS SEMESTRALES
A104: EDAD
C105: DL1 | D105: DL2 | E105: DL3 | F105: DL4 | G105: DL5 | H105: DL6
A106: 18 | B106: - 24 | C106: =+C73*$L$2 -> 0 | D106: 0 | E106: 0 | F106: 0 | G106: 0 | H106: 0
A107: 25 | B107: - 29 | C107: 0 | D107: 0 | E107: 0 | F107: 0 | G107: 0 | H107: 0
A108: 30 | B108: - 34 | C108: 0 | D108: 0 | E108: 0 | F108: 0 | G108: 0 | H108: 0
A109: 35 | B109: - 39 | C109: 0 | D109: 0 | E109: 0 | F109: 0 | G109: 0 | H109: 0
A110: 40 | B110: - 44 | C110: 0 | D110: 0 | E110: 0 | F110: 0 | G110: 0 | H110: 0
A111: 45 | B111: - 49 | C111: 0 | D111: 0 | E111: 0 | F111: 0 | G111: 0 | H111: 0
A112: 50 | B112: - 54 | C112: 0 | D112: 0 | E112: 0 | F112: 0 | G112: 0 | H112: 0
A113: 55 | B113: - 59 | C113: 0 | D113: 0 | E113: 0 | F113: 0 | G113: 0 | H113: 0
A114: 60 | C114: 0 | D114: 0 | E114: 0 | F114: 0 | G114: 0 | H114: 0
A115: 61 | C115: 0 | D115: 0 | E115: 0 | F115: 0 | G115: 0 | H115: 0
A116: 62 | C116: =+C83*$L$2 -> 0 | D116: 0 | E116: 0 | F116: 0 | G116: 0 | H116: 0
A117: 63 | C117: 0 | D117: 0 | E117: 0 | F117: 0 | G117: 0 | H117: 0
A118: 64 | C118: 0 | D118: 0 | E118: 0 | F118: 0 | G118: 0 | H118: 0
A119: 65 | C119: 0 | D119: 0 | E119: 0 | F119: 0 | G119: 0 | H119: 0
A120: 66 | C120: 0 | D120: 0 | E120: 0 | F120: 0 | G120: 0 | H120: 0
A121: 67 | C121: 0 | D121: 0 | E121: 0 | F121: 0 | G121: 0 | H121: 0
A122: 68 | C122: 0 | D122: 0 | E122: 0 | F122: 0 | G122: 0 | H122: 0
A123: 69 | C123: 0 | D123: 0 | E123: 0 | F123: 0 | G123: 0 | H123: 0
A124: 70 | C124: 0 | D124: 0 | E124: 0 | F124: 0 | G124: 0 | H124: 0
A125: 71 | C125: 0 | D125: 0 | E125: 0 | F125: 0 | G125: 0 | H125: 0
A126: 72 | C126: =+C93*$L$2 -> 0 | D126: 0 | E126: 0 | F126: 0 | G126: 0 | H126: 0
A127: 73 | C127: 0 | D127: 0 | E127: 0 | F127: 0 | G127: 0 | H127: 0
A128: 74 | C128: 0 | D128: 0 | E128: 0 | F128: 0 | G128: 0 | H128: 0
A129: 75 | B129: o más | C129: 0 | D129: 0 | E129: 0 | F129: 0 | G129: 0 | H129: 0
A130: 1 | B130: Hijo | C130: 0 | D130: 0 | E130: 0 | F130: 0 | G130: 0 | H130: 0
A131: 2 | B131: Hijos | C131: 0 | D131: 0 | E131: 0 | F131: 0 | G131: 0 | H131: 0
A132: 3 | B132: Hijos o más | C132: 0 | D132: 0 | E132: 0 | F132: 0 | G132: 0 | H132: 0
A133: 1 | B133: Rider Comp. Maternidad | C133: 0 | D133: 0 | E133: 0 | F133: 0 | G133: 0 | H133: 0
A134: 1 | B134: Transplante de organos | C134: 0 | D134: 0 | E134: 0 | F134: 0 | G134: 0 | H134: 0
A136: PRIVILEGE
A137: TARIFAS ANUALES
A138: EDAD
D139: CW2 | E139: CW3 | F139: CW4 | G139: CW5 | H139: CW6 | J139: DW2 | K139: DW3 | L139: DW4 | M139: DW5 | N139: DW6
A140: 18 | B140: 18-24 | D140: 15762 | E140: 10834 | F140: 7180 | G140: 5088 | H140: 3883 | J140: 0 | K140: 0 | L140: 0 | M140: 0 | N140: 0
A141: 25 | B141: 25-29 | D141: 16545 | E141: 12001 | F141: 7952 | G141: 5645 | H141: 4301 | J141: 0 | K141: 0 | L141: 0 | M141: 0 | N141: 0
A142: 30 | B142: 30-34 | D142: 17269 | E142: 12834 | F142: 8930 | G142: 6818 | H142: 5200 | J142: 0 | K142: 0 | L142: 0 | M142: 0 | N142: 0
A143: 35 | B143: 35-39 | D143: 19337 | E143: 14365 | F143: 10002 | G143: 7645 | H143: 5834 | J143: 0 | K143: 0 | L143: 0 | M143: 0 | N143: 0
A144: 40 | B144: 40-44 | D144: 22387 | E144: 15750 | F144: 11119 | G144: 8433 | H144: 6437 | J144: 0 | K144: 0 | L144: 0 | M144: 0 | N144: 0
A145: 45 | B145: 45-49 | D145: 25014 | E145: 17595 | F145: 12430 | G145: 9429 | H145: 7201 | J145: 0 | K145: 0 | L145: 0 | M145: 0 | N145: 0
A146: 50 | B146: 50-54 | D146: 32701 | E146: 23218 | F146: 16319 | G146: 13452 | H146: 10287 | J146: 0 | K146: 0 | L146: 0 | M146: 0 | N146: 0
A147: 55 | B147: 55-59 | D147: 34790 | E147: 24705 | F147: 17371 | G147: 14315 | H147: 10940 | J147: 0 | K147: 0 | L147: 0 | M147: 0 | N147: 0
A148: 60 | B148: 60 | D148: 37882 | E148: 26829 | F148: 19767 | G148: 17029 | H148: 13666 | J148: 0 | K148: 0 | L148: 0 | M148: 0 | N148: 0
A149: 61 | B149: 61 | D149: 40716 | E149: 28802 | F149: 21247 | G149: 18299 | H149: 14684 | J149: 0 | K149: 0 | L149: 0 | M149: 0 | N149: 0
A150: 62 | B150: 62 | D150: 44558 | E150: 31555 | F150: 23259 | G150: 20036 | H150: 16088 | J150: 0 | K150: 0 | L150: 0 | M150: 0 | N150: 0
A151: 63 | B151: 63 | D151: 47370 | E151: 33551 | F151: 24725 | G151: 21300 | H151: 17108 | J151: 0 | K151: 0 | L151: 0 | M151: 0 | N151: 0
A152: 64 | B152: 64 | D152: 51247 | E152: 36295 | F152: 26753 | G152: 23040 | H152: 18509 | J152: 0 | K152: 0 | L152: 0 | M152: 0 | N152: 0
A153: 65 | B153: 65 | D153: 66990 | E153: 47337 | F153: 33824 | G153: 30727 | H153: 26096 | J153: 0 | K153: 0 | L153: 0 | M153: 0 | N153: 0
A154: 66 | B154: 66 | D154: 77827 | E154: 54999 | F154: 39290 | G154: 35706 | H154: 30326 | J154: 0 | K154: 0 | L154: 0 | M154: 0 | N154: 0
A155: 67 | B155: 67 | D155: 85003 | E155: 60066 | F155: 42912 | G155: 38998 | H155: 33119 | J155: 0 | K155: 0 | L155: 0 | M155: 0 | N155: 0
A156: 68 | B156: 68 | D156: 94126 | E156: 66516 | F156: 47531 | G156: 43194 | H156: 36667 | J156: 0 | K156: 0 | L156: 0 | M156: 0 | N156: 0
A157: 69 | B157: 69 | D157: 103548 | E157: 73182 | F157: 52288 | G157: 47513 | H157: 40355 | J157: 0 | K157: 0 | L157: 0 | M157: 0 | N157: 0
A158: 70 | B158: 70 | D158: 127444 | E158: 89106 | F158: 61543 | G158: 55368 | H158: 47459 | J158: 0 | K158: 0 | L158: 0 | M158: 0 | N158: 0
A159: 71 | B159: 71 | D159: 132431 | E159: 92609 | F159: 63957 | G159: 57540 | H159: 49324 | J159: 0 | K159: 0 | L159: 0 | M159: 0 | N159: 0
A160: 72 | B160: 72 | D160: 136189 | E160: 95225 | F160: 65774 | G160: 59173 | H160: 50720 | J160: 0 | K160: 0 | L160: 0 | M160: 0 | N160: 0
A161: 73 | B161: 73 | D161: 141197 | E161: 98722 | F161: 68192 | G161: 61347 | H161: 52589 | J161: 0 | K161: 0 | L161: 0 | M161: 0 | N161: 0
A162: 74 | B162: 74 | D162: 143688 | E162: 100466 | F162: 69400 | G162: 62439 | H162: 53519 | J162: 0 | K162: 0 | L162: 0 | M162: 0 | N162: 0
A163: 75 | B163: 75+ | D163: 149947 | E163: 104842 | F163: 72423 | G163: 65145 | H163: 55855 | J163: 0 | K163: 0 | L163: 0 | M163: 0 | N163: 0
A164: 1 | B164: 1 Child | D164: 5472 | E164: 4002 | F164: 2926 | G164: 2465 | H164: 1828 | J164: 0 | K164: 0 | L164: 0 | M164: 0 | N164: 0
A165: 2 | B165: 2 Children | D165: 8698 | E165: 6360 | F165: 4643 | G165: 3922 | H165: 2898 | J165: 0 | K165: 0 | L165: 0 | M165: 0 | N165: 0
A166: 3 | B166: 3+ Children | D166: 12742 | E166: 9314 | F166: 6808 | G166: 5742 | H166: 4246 | J166: 0 | K166: 0 | L166: 0 | M166: 0 | N166: 0
A167: 1 | B167: Rider Comp. Maternidad | D167: 0 | E167: 0 | F167: 225 | G167: 225 | H167: 225
A168: 1 | B168: Transplante de organos | D168: 0 | E168: 0 | F168: 0 | G168: 0 | H168: 0
A170: TARIFAS SEMESTRALES
A171: EDAD
D172: CW2 | E172: CW3 | F172: CW4 | G172: CW5 | H172: CW6 | J172: 3 | K172: 7 | L172: 11 | M172: 15 | N172: 19
A173: 18 | B173: 18-24 | D173: =$L$2*D140 -> 8353.86 | E173: =$L$2*E140 -> 5742.02 | F173: 3805.4 | G173: 2696.64 | H173: 2057.99 | J173: 0 | K173: 0 | L173: 0 | M173: 0 | N173: 0
A174: 25 | B174: 25-29 | D174: =$L$2*D141 -> 8768.85 | E174: =$L$2*E141 -> 6360.53 | F174: 4214.56 | G174: 2991.85 | H174: 2279.53 | J174: 0 | K174: 0 | L174: 0 | M174: 0 | N174: 0
A175: 30 | B175: 30-34 | D175: 9152.57 | E175: 6802.02 | F175: 4732.9 | G175: 3613.54 | H175: 2756 | J175: 0 | K175: 0 | L175: 0 | M175: 0 | N175: 0
A176: 35 | B176: 35-39 | D176: 10248.61 | E176: 7613.45 | F176: 5301.06 | G176: 4051.85 | H176: 3092.02 | J176: 0 | K176: 0 | L176: 0 | M176: 0 | N176: 0
A177: 40 | B177: 40-44 | D177: 11865.11 | E177: 8347.5 | F177: 5893.07 | G177: 4469.49 | H177: 3411.61 | J177: 0 | K177: 0 | L177: 0 | M177: 0 | N177: 0
A178: 45 | B178: 45-49 | D178: 13257.42 | E178: 9325.35 | F178: 6587.9 | G178: 4997.37 | H178: 3816.53 | J178: 0 | K178: 0 | L178: 0 | M178: 0 | N178: 0
A179: 50 | B179: 50-54 | D179: 17331.53 | E179: 12305.54 | F179: 8649.07 | G179: 7129.56 | H179: 5452.11 | J179: 0 | K179: 0 | L179: 0 | M179: 0 | N179: 0
A180: 55 | B180: 55-59 | D180: 18438.7 | E180: 13093.65 | F180: 9206.63 | G180: 7586.95 | H180: 5798.2 | J180: 0 | K180: 0 | L180: 0 | M180: 0 | N180: 0
A181: 60 | B181: 60 | D181: 20077.46 | E181: 14219.37 | F181: 10476.51 | G181: 9025.37 | H181: 7242.98 | J181: 0 | K181: 0 | L181: 0 | M181: 0 | N181: 0
A182: 61 | B182: 61 | D182: 21579.48 | E182: 15265.06 | F182: 11260.91 | G182: 9698.47 | H182: 7782.52 | J182: 0 | K182: 0 | L182: 0 | M182: 0 | N182: 0
A183: 62 | B183: 62 | D183: 23615.74 | E183: 16724.15 | F183: 12327.27 | G183: 10619.08 | H183: 8526.64 | J183: 0 | K183: 0 | L183: 0 | M183: 0 | N183: 0
A184: 63 | B184: 63 | D184: 25106.1 | E184: 17782.03 | F184: 13104.25 | G184: 11289 | H184: 9067.24 | J184: 0 | K184: 0 | L184: 0 | M184: 0 | N184: 0
A185: 64 | B185: 64 | D185: 27160.91 | E185: 19236.35 | F185: 14179.09 | G185: 12211.2 | H185: 9809.77 | J185: 0 | K185: 0 | L185: 0 | M185: 0 | N185: 0
A186: 65 | B186: 65 | D186: 35504.7 | E186: 25088.61 | F186: 17926.72 | G186: 16285.31 | H186: 13830.88 | J186: 0 | K186: 0 | L186: 0 | M186: 0 | N186: 0
A187: 66 | B187: 66 | D187: 41248.31 | E187: 29149.47 | F187: 20823.7 | G187: =$L$2*G154 -> 18924.18 | H187: 16072.78 | J187: 0 | K187: 0 | L187: 0 | M187: 0 | N187: 0
A188: 67 | B188: 67 | D188: 45051.59 | E188: 31834.98 | F188: 22743.36 | G188: 20668.94 | H188: 17553.07 | J188: 0 | K188: 0 | L188: 0 | M188: 0 | N188: 0
A189: 68 | B189: 68 | D189: 49886.78 | E189: 35253.48 | F189: 25191.43 | G189: 22892.82 | H189: 19433.51 | J189: 0 | K189: 0 | L189: 0 | M189: 0 | N189: 0
A190: 69 | B190: 69 | D190: 54880.44 | E190: 38786.46 | F190: 27712.64 | G190: 25181.89 | H190: 21388.15 | J190: 0 | K190: 0 | L190: 0 | M190: 0 | N190: 0
A191: 70 | B191: 70 | D191: 67545.32 | E191: 47226.18 | F191: 32617.79 | G191: 29345.04 | H191: 25153.27 | J191: 0 | K191: 0 | L191: 0 | M191: 0 | N191: 0
A192: 71 | B192: 71 | D192: 70188.43 | E192: 49082.77 | F192: 33897.21 | G192: 30496.2 | H192: 26141.72 | J192: 0 | K192: 0 | L192: 0 | M192: 0 | N192: 0
A193: 72 | B193: 72 | D193: 72180.17 | E193: 50469.25 | F193: 34860.22 | G193: 31361.69 | H193: 26881.6 | J193: 0 | K193: 0 | L193: 0 | M193: 0 | N193: 0
A194: 73 | B194: 73 | D194: 74834.41 | E194: 52322.66 | F194: 36141.76 | G194: 32513.91 | H194: 27872.17 | J194: 0 | K194: 0 | L194: 0 | M194: 0 | N194: 0
A195: 74 | B195: 74 | D195: 76154.64 | E195: 53246.98 | F195: 36782 | G195: 33092.67 | H195: 28365.07 | J195: 0 | K195: 0 | L195: 0 | M195: 0 | N195: 0
A196: 75 | B196: 75+ | D196: 79471.91 | E196: 55566.26 | F196: 38384.19 | G196: 34526.85 | H196: 29603.15 | J196: 0 | K196: 0 | L196: 0 | M196: 0 | N196: 0
A197: 1 | B197: 1 Child | D197: 2900.16 | E197: 2121.06 | F197: 1550.78 | G197: 1306.45 | H197: 968.84 | J197: 0 | K197: 0 | L197: 0 | M197: 0 | N197: 0
A198: 2 | B198: 2 Children | D198: 4609.94 | E198: 3370.8 | F198: 2460.79 | G198: 2078.66 | H198: 1535.94 | J198: 0 | K198: 0 | L198: 0 | M198: 0 | N198: 0
A199: 3 | B199: 3+ Children | D199: 6753.26 | E199: 4936.42 | F199: 3608.24 | G199: 3043.26 | H199: 2250.38 | J199: 0 | K199: 0 | L199: 0 | M199: 0 | N199: 0
A200: 1 | B200: Rider Comp. Maternidad | D200: =+D167*$L$2 -> 0 | E200: 0 | F200: 119.25 | G200: 119.25 | H200: 119.25
A201: 1 | B201: Transplante de organos | D201: 0 | E201: 0 | F201: 0 | G201: 0 | H201: 0
A203: COMPLETE (LATINAMERICA ONLY)
A204: TARIFAS ANUALES
A205: EDAD
A207: 18 | B207: - 24
A208: 25 | B208: - 29
A209: 30 | B209: - 34
... 331 more rows

Sheet Sheet1 (hidden)
B1: Deductible | C1: 2000 | E1: 3500 | G1: 5000 | I1: 10000 | K1: 20000 | M1: 50000
C2: Annual | D2: Semi-Annual | E2: Annual | F2: Semi-Annual | G2: Annual | H2: Semi-Annual | I2: Annual | J2: Semi-Annual | K2: Annual | L2: Semi-Annual | M2: Annual | N2: Semi-Annual
B3: Under 50
B4: 0 1 Member | C4: 4785 | D4: 2536.05 | E4: 4161 | F4: 2205.33 | G4: 3497 | H4: 1853.41 | I4: 2676 | J4: 1418.28 | K4: 1891 | L4: 1002.23 | M4: 1048 | N4: 555.44
B5: 0 2 Members | C5: 8728 | D5: 4625.84 | E5: 7432 | F5: 3938.96 | G5: 6330 | H5: 3354.9 | I5: 4800 | J5: 2544 | K5: 3333 | L5: 1766.49 | M5: 1778 | N5: 942.34
B6: 0 3+ Members | C6: 12683 | D6: 6721.99 | E6: 10691 | F6: 5666.23 | G6: 9158 | H6: 4853.74 | I6: 6920 | J6: 3667.6 | K6: 4779 | L6: 2532.87 | M6: 2501 | N6: 1325.53
B8: Over 50
B9: 50 1 Member | C9: 6165 | D9: 3267.45 | E9: 5354 | F9: 2837.62 | G9: 4486 | H9: 2377.58 | I9: 3432 | J9: 1818.96 | K9: 2401 | L9: 1272.53 | M9: 1294 | N9: 685.82
B10: 50 2 Members | C10: 10101 | D10: 5353.53 | E10: 8616 | F10: 4566.48 | G10: 7308 | H10: 3873.24 | I10: 5551 | J10: 2942.03 | K10: 3832 | L10: 2030.96 | M10: 2031 | N10: 1076.43
B11: 50 3+ Members | C11: 14047 | D11: 7444.91 | E11: 11874 | F11: 6293.22 | G11: 10150 | H11: 5379.5 | I11: 7670 | J11: 4065.1 | K11: 5282 | L11: 2799.46 | M11: 2744 | N11: 1454.32
